fUST/lending_fUST_20240912
["ID","MTS","AMOUNT","RATE_DAILY","PERIOD"]
[337800253,1726125046173,-500.0,0.00016712,2]
[337800254,1726125046184,-338.23549102,0.00016712,2]
[337800255,1726125046194,-500.0,0.00016712,2]
[337800256,1726125046205,-500.0,0.00016712,2]
[337800257,1726125046216,-500.0,0.00016712,2]
[337800258,1726125046228,-500.0,0.00016712,2]
[337800259,1726125046239,-500.0,0.00016712,2]
[337800260,1726125046249,-500.0,0.00016712,2]
[337800261,1726125046260,-500.0,0.00016712,2]
[337800262,1726125046271,-692.16,0.00016712,2]
[337800263,1726125046282,-157.97828136,0.00016712,2]
[337800264,1726125046293,-500.0,0.00016712,2]
[337800265,1726125046305,-500.0,0.00016712,2]
[337800266,1726125046316,-502.54879552,0.00016712,2]
[337800267,1726125046327,-500.0,0.00016712,2]
[337800268,1726125046337,-748.9,0.00016712,2]
[337800269,1726125046348,-602.18,0.00016712,2]
[337800270,1726125046360,-546.7709716,0.00016712,2]
[337800271,1726125046371,-500.0,0.00016712,2]
[337800272,1726125046382,-620.48,0.00016712,2]
[337800273,1726125046392,-500.0,0.00016712,2]
[337800274,1726125046404,-500.0,0.00016712,2]
[337800275,1726125046414,-690.04,0.00016712,2]
[337800276,1726125046424,-500.0,0.00016712,2]
[337800277,1726125046435,-500.0,0.00016712,2]
[337800278,1726125046445,-500.0,0.00016712,2]
[337800279,1726125046456,-500.0,0.00016712,2]
[337800280,1726125046466,-500.0,0.00016712,2]
[337800281,1726125046478,-500.0,0.00016712,2]
[337800282,1726125046488,-500.0,0.00016712,2]
[337800283,1726125046499,-500.0,0.00016712,2]
[337800284,1726125046509,-656.82,0.00016712,2]
[337800285,1726125046776,-500.0,0.00016712,2]
[337800286,1726125046794,-500.0,0.00016712,2]
[337800287,1726125046811,-500.0,0.00016712,2]
[337800288,1726125046820,-500.0,0.00016712,2]
[337800289,1726125046831,-500.0,0.00016712,2]
[337800290,1726125046841,-500.0,0.00016712,2]
[337800291,1726125046850,-620.58,0.00016712,2]
[337800292,1726125046859,-501.04321213,0.00016712,2]
[337800293,1726125046868,-500.0,0.00016712,2]
[337800294,1726125046878,-500.0,0.00016712,2]
[337800295,1726125046887,-500.0,0.00016712,2]
[337800296,1726125046906,-500.0,0.00016712,2]
[337800297,1726125046916,-504.98899014,0.00016712,2]
[337800298,1726125046927,-506.92099217,0.00016712,2]
[337800299,1726125046937,-500.0,0.00016712,2]
[337800300,1726125046946,-500.0,0.00016712,2]
[337800301,1726125046956,-465.03592048,0.00016712,2]
[337800302,1726125046966,-500.0,0.00016712,2]
[337800303,1726125046975,-500.0,0.00016712,2]
[337800304,1726125046985,-500.0,0.00016712,2]
[337800305,1726125046995,-500.0,0.00016712,2]
[337800306,1726125047006,-528.73550149,0.00016712,2]
[337800307,1726125047016,-500.0,0.00016712,2]
[337800308,1726125047026,-500.0,0.00016712,2]
[337800309,1726125047036,-501.76966104,0.00016712,2]
[337800310,1726125047045,-500.0,0.00016712,2]
[337800311,1726125047055,-500.0,0.00016712,2]
[337800312,1726125047064,-500.0,0.00016712,2]
[337800313,1726125047073,-500.0,0.00016712,2]
[337800314,1726125047084,-500.0,0.00016712,2]
[337800315,1726125047095,-500.0,0.00016712,2]
[337800316,1726125047105,-500.0,0.00016712,2]
[337800317,1726125047117,-500.0,0.00016712,2]
[337800318,1726125047128,-500.0,0.00016712,2]
[337800319,1726125047139,-424.60231875,0.00016712,2]
[337800320,1726125047149,-500.0,0.00016712,2]
[337800321,1726125047160,-500.0,0.00016712,2]
[337800322,1726125047169,-500.0,0.00016712,2]
[337800323,1726125047180,-500.0,0.00016712,2]
[337800324,1726125047192,-504.21309115,0.00016712,2]
[337800325,1726125047205,-500.0,0.00016712,2]
[337800326,1726125047218,-500.0,0.00016712,2]
[337800327,1726125047230,-500.0,0.00016712,2]
[337800328,1726125047240,-500.0,0.00016712,2]
[337800329,1726125047251,-500.0,0.00016712,2]
[337800330,1726125047263,-500.0,0.00016712,2]
[337800331,1726125047272,-1475.61,0.00016712,2]
[337800332,1726125047282,-500.0,0.00016712,2]
[337800333,1726125047292,-500.0,0.00016712,2]
[337800334,1726125047302,-500.0,0.00016712,2]
[337800335,1726125047313,-500.0,0.00016712,2]
[337800336,1726125047323,-500.0,0.00016712,2]
[337800337,1726125047335,-500.0,0.00016712,2]
[337800338,1726125047346,-500.0,0.00016712,2]
[337800339,1726125047357,-500.0,0.00016712,2]
[337800340,1726125047367,-500.0,0.00016712,2]
[337800341,1726125047376,-500.0,0.00016712,2]
[337800342,1726125047386,-500.0,0.00016712,2]
[337800343,1726125047396,-551.35,0.00016712,2]
[337800344,1726125047406,-588.39,0.00016712,2]
[337800345,1726125047416,-500.0,0.00016712,2]
[337800346,1726125047427,-500.0,0.00016712,2]
[337800347,1726125047436,-500.0,0.00016712,2]
[337800348,1726125047446,-500.0,0.00016712,2]
[337800349,1726125047455,-500.0,0.00016712,2]
[337800350,1726125047465,-500.0,0.00016712,2]
[337800351,1726125047477,-500.0,0.00016712,2]
[337800352,1726125047487,-515.21,0.00016712,2]
[337800353,1726125047496,-500.0,0.00016712,2]
[337800354,1726125047507,-500.0,0.00016712,2]
[337800355,1726125047516,-500.0,0.00016712,2]
[337800356,1726125047527,-163.24,0.00016712,2]
[337800357,1726125047537,-500.0,0.00016712,2]
[337800358,1726125047547,-306.04,0.00016712,2]
[337800359,1726125047557,-492.05993453,0.00016712,2]
[337800360,1726125047567,-500.0,0.00016712,2]
[337800361,1726125047576,-615.41,0.00016712,2]
[337800362,1726125047587,-500.0,0.00016712,2]
[337800363,1726125047597,-500.0,0.00016712,2]
[337800364,1726125047610,-500.0,0.00016712,2]
[337800365,1726125047619,-500.0,0.00016712,2]
[337800366,1726125047629,-500.0,0.00016712,2]
[337800367,1726125047638,-500.0,0.00016712,2]
[337800368,1726125047648,-500.0,0.00016712,2]
[337800369,1726125047659,-619.74,0.00016712,2]
[337800370,1726125047669,-1495.56,0.00016712,2]
[337800371,1726125047679,-912.23,0.00016712,2]
[337800372,1726125047690,-500.0,0.00016712,2]
[337800373,1726125047700,-500.0,0.00016712,2]
[337800374,1726125047711,-500.0,0.00016712,2]
[337800375,1726125047721,-500.0,0.00016712,2]
[337800376,1726125047732,-500.0,0.00016712,2]
[337800377,1726125047742,-500.0,0.00016712,2]
[337800378,1726125047752,-500.0,0.00016712,2]
[337800379,1726125047762,-500.0,0.00016712,2]
[337800380,1726125047772,-500.0,0.00016712,2]
[337800381,1726125047782,-1323.12,0.00016712,2]
[337800382,1726125047791,-500.0,0.00016712,2]
[337800383,1726125047801,-622.05,0.00016712,2]
[337800384,1726125047811,-318.89,0.00016712,2]
[337800385,1726125047821,-500.0,0.00016712,2]
[337800386,1726125047831,-500.0,0.00016712,2]
[337800387,1726125047841,-6617.43,0.00016712,2]
[337800388,1726125047852,-500.0,0.00016712,2]
[337800389,1726125047862,-500.0,0.00016712,2]
[337800390,1726125047872,-500.0,0.00016712,2]
[337800391,1726125047882,-500.0,0.00016712,2]
[337800392,1726125047891,-500.0,0.00016712,2]
[337800393,1726125047901,-500.0,0.00016712,2]
[337800394,1726125047911,-500.0,0.00016712,2]
[337800395,1726125047922,-500.0,0.00016712,2]
[337800396,1726125047932,-500.0,0.00016712,2]
[337800397,1726125047943,-500.0,0.00016712,2]
[337800398,1726125047953,-500.0,0.00016712,2]
[337800399,1726125047962,-510.09,0.00016712,2]
[337800400,1726125047972,-500.0,0.00016712,2]
[337800401,1726125047982,-908.28,0.00016712,2]
[337800402,1726125047992,-500.0,0.00016712,2]
[337800403,1726125048002,-617.92,0.00016712,2]
[337800404,1726125048012,-500.0,0.00016712,2]
[337800405,1726125048022,-461.67472828,0.00016712,2]
[337800406,1726125048032,-590.40242394,0.00016712,2]
[337800407,1726125048042,-500.0,0.00016712,2]
[337800408,1726125048052,-465.38,0.00016712,2]
[337800409,1726125048061,-550.0,0.00016712,2]
[337800410,1726125048072,-500.0,0.00016712,2]
[337800411,1726125048082,-500.0,0.00016712,2]
[337800412,1726125048091,-500.0,0.00016712,2]
[337800413,1726125048102,-500.0,0.00016712,2]
[337800414,1726125048113,-500.0,0.00016712,2]
[337800415,1726125048123,-716.66,0.00016712,2]
[337800416,1726125048133,-200.0,0.00016712,2]
[337800417,1726125048143,-500.0,0.00016712,2]
[337800418,1726125048153,-500.0,0.00016712,2]
[337800419,1726125048163,-500.0,0.00016712,2]
[337800420,1726125048172,-500.0,0.00016712,2]
[337800421,1726125048183,-500.0,0.00016712,2]
[337800422,1726125048193,-500.0,0.00016712,2]
[337800423,1726125048203,-1040.85,0.00016712,2]
[337800424,1726125048212,-160.04,0.00016712,2]
[337800425,1726125048222,-500.0,0.00016712,2]
[337800426,1726125048232,-500.0,0.00016712,2]
[337800427,1726125048241,-500.0,0.00016712,2]
[337800428,1726125048251,-575.54,0.00016712,2]
[337800429,1726125048260,-527.06853501,0.00016712,2]
[337800430,1726125048270,-500.0,0.00016712,2]
[337800431,1726125048280,-500.0,0.00016712,2]
[337800432,1726125048289,-500.0,0.00016712,2]
[337800433,1726125048299,-508.22,0.00016712,2]
[337800434,1726125048308,-500.0,0.00016712,2]
[337800435,1726125048318,-500.0,0.00016712,2]
[337800436,1726125048328,-500.0,0.00016712,2]
[337800437,1726125048337,-7638.2,0.00016712,2]
[337800438,1726125048347,-500.0,0.00016712,2]
[337800439,1726125048357,-500.0,0.00016712,2]
[337800440,1726125048367,-500.0,0.00016712,2]
[337800441,1726125048377,-6438.54,0.00016712,2]
[337800442,1726125048386,-500.0,0.00016712,2]
[337800443,1726125048397,-500.0,0.00016712,2]
[337800444,1726125048406,-728.28,0.00016712,2]
[337800445,1726125048417,-500.0,0.00016712,2]
[337800446,1726125048426,-805.69,0.00016712,2]
[337800447,1726125048436,-1337.49,0.00016712,2]
[337800448,1726125048447,-951.06,0.00016712,2]
[337800449,1726125048459,-6829.49,0.00016712,2]
[337800450,1726125048468,-586.91,0.00016712,2]
[337800451,1726125048478,-500.0,0.00016712,2]
[337800452,1726125048487,-539.1,0.00016712,2]
[337800453,1726125048497,-500.0,0.00016712,2]
[337800454,1726125048506,-917.76,0.00016712,2]
[337800455,1726125048515,-500.0,0.00016712,2]
[337800456,1726125048525,-500.0,0.00016712,2]
[337800457,1726125048534,-500.0,0.00016712,2]
[337800458,1726125048543,-1211.83,0.00016712,2]
[337800459,1726125048553,-515.33,0.00016712,2]
[337800460,1726125048563,-500.0,0.00016712,2]
[337800461,1726125048572,-859.49,0.00016712,2]
[337800462,1726125048582,-538.53,0.00016712,2]
[337800463,1726125048591,-500.0,0.00016712,2]
[337800464,1726125048601,-834.69,0.00016712,2]
[337800465,1726125048615,-500.0,0.00016712,2]
[337800466,1726125048624,-527.38638977,0.00016712,2]
[337800467,1726125048634,-729.48,0.00016712,2]
[337800468,1726125048644,-500.0,0.00016712,2]
[337800469,1726125048654,-500.0,0.00016712,2]
[337800470,1726125048664,-605.37,0.00016712,2]
[337800471,1726125048674,-500.0,0.00016712,2]
[337800472,1726125048685,-1064.49,0.00016712,2]
[337800473,1726125048695,-500.0,0.00016712,2]
[337800474,1726125048704,-500.0,0.00016712,2]
[337800475,1726125048713,-4198.42,0.00016712,2]
[337800476,1726125048722,-2045.53,0.00016712,2]
[337800477,1726125048732,-500.0,0.00016712,2]
[337800478,1726125048748,-743.67,0.00016712,2]
[337800479,1726125048757,-1332.3,0.00016712,2]
[337800480,1726125048766,-1124.01,0.00016712,2]
[337800481,1726125048776,-500.0,0.00016712,2]
[337800482,1726125048786,-800.52,0.00016712,2]
[337800483,1726125048796,-2485.92,0.00016712,2]
[337800484,1726125048805,-500.0,0.00016712,2]
[337800485,1726125048815,-500.0,0.00016712,2]
[337800486,1726125048824,-543.03286653,0.00016712,2]
[337800487,1726125048834,-502.23135201,0.00016712,2]
[337800488,1726125048843,-500.0,0.00016712,2]
[337800489,1726125048853,-502.61441016,0.00016712,2]
[337800490,1726125048862,-500.0,0.00016712,2]
[337800491,1726125048872,-708.19,0.00016712,2]
[337800492,1726125048881,-500.0,0.00016712,2]
[337800493,1726125048891,-500.0,0.00016712,2]
[337800494,1726125048900,-500.0,0.00016712,2]
[337800495,1726125048910,-500.0,0.00016712,2]
[337800496,1726125048919,-150.112233,0.000168,2]
[337800497,1726125048929,-150.112233,0.000168,2]
[337800498,1726125048938,-1632.48081619,0.00016886,2]
[337800499,1726125048949,-150.112233,0.000169,2]
[337800500,1726125048958,-150.112233,0.000169,2]
[337800501,1726125048968,-41035.5681923,0.00016976,2]
[337800502,1726125048977,-500.0,0.00016985,2]
[337800503,1726125048991,-500.0,0.00016986,2]
[337800504,1726125049001,-500.0,0.00016986,2]
[337800505,1726125049010,-500.0,0.00016986,2]
[337800506,1726125049020,-500.0,0.00016986,2]
[337800507,1726125049030,-500.0,0.00016986,2]
[337800508,1726125049040,-500.0,0.00016986,2]
[337800509,1726125049050,-500.0,0.00016986,2]
[337800510,1726125049060,-500.0,0.00016986,2]
[337800511,1726125049070,-500.0,0.00016986,2]
[337800512,1726125049080,-500.0,0.00016986,2]
[337800513,1726125049090,-177.0,0.00016986,2]
[337800514,1726125049100,-500.0,0.00016986,2]
[337800515,1726125049110,-500.0,0.00016986,2]
[337800516,1726125049120,-500.0,0.00016986,2]
[337800517,1726125049131,-631.84,0.00016986,2]
[337800518,1726125049143,-500.0,0.00016986,2]
[337800519,1726125049153,-500.0,0.00016986,2]
[337800520,1726125049163,-248.22,0.00016986,2]
[337800521,1726125049172,-500.0,0.00016986,2]
[337800522,1726125049182,-500.0,0.00016986,2]
[337800523,1726125049193,-500.0,0.00016986,2]
[337800524,1726125049202,-500.0,0.00016986,2]
[337800525,1726125049212,-1043.21,0.00016986,2]
[337800526,1726125049221,-500.0,0.00016986,2]
[337800527,1726125049231,-500.0,0.00016986,2]
[337800528,1726125049240,-833.03,0.00016986,2]
[337800529,1726125049250,-500.0,0.00016986,2]
[337800530,1726125049261,-504.8,0.00016986,2]
[337800531,1726125049272,-500.0,0.00016986,2]
[337800532,1726125049283,-852.96,0.00016986,2]
[337800533,1726125049295,-497.83270152,0.00016986,2]
[337800534,1726125049305,-500.0,0.00016986,2]
[337800535,1726125049315,-500.0,0.00016986,2]
[337800536,1726125049325,-500.0,0.00016986,2]
[337800537,1726125049335,-500.0,0.00016986,2]
[337800538,1726125049345,-500.0,0.00016986,2]
[337800539,1726125049357,-500.0,0.00016986,2]
[337800540,1726125049367,-500.0,0.00016986,2]
[337800541,1726125049378,-500.0,0.00016986,2]
[337800542,1726125049388,-500.0,0.00016986,2]
[337800543,1726125049398,-500.0,0.00016986,2]
[337800544,1726125049407,-500.0,0.00016986,2]
[337800545,1726125049417,-500.0,0.00016986,2]
[337800546,1726125049427,-500.0,0.00016986,2]
[337800547,1726125049436,-500.0,0.00016986,2]
[337800548,1726125049446,-500.0,0.00016986,2]
[337800549,1726125049456,-500.0,0.00016986,2]
[337800550,1726125049466,-500.0,0.00016986,2]
[337800551,1726125049475,-500.0,0.00016986,2]
[337800552,1726125049486,-500.0,0.00016986,2]
[337800553,1726125049497,-500.0,0.00016986,2]
[337800554,1726125049508,-500.0,0.00016986,2]
[337800555,1726125049518,-500.0,0.00016986,2]
[337800556,1726125049529,-500.0,0.00016986,2]
[337800557,1726125049539,-500.0,0.00016986,2]
[337800558,1726125049549,-500.0,0.00016986,2]
[337800559,1726125049559,-500.0,0.00016986,2]
[337800560,1726125049568,-500.0,0.00016986,2]
[337800561,1726125049578,-500.0,0.00016986,2]
[337800562,1726125049589,-500.0,0.00016986,2]
[337800563,1726125049599,-500.0,0.00016986,2]
[337800564,1726125049614,-500.0,0.00016986,2]
[337800565,1726125049624,-613.82,0.00016986,2]
[337800566,1726125049634,-500.0,0.00016986,2]
[337800567,1726125049644,-598.71,0.00016986,2]
[337800568,1726125049655,-505.9,0.00016986,2]
[337800569,1726125049665,-587.94,0.00016986,2]
[337800570,1726125049675,-500.0,0.00016986,2]
[337800571,1726125049686,-155.92,0.00016986,2]
[337800572,1726125049695,-500.0,0.00016986,2]
[337800573,1726125049705,-500.0,0.00016986,2]
[337800574,1726125049718,-500.0,0.00016986,2]
[337800575,1726125049727,-500.0,0.00016986,2]
[337800576,1726125049737,-692.16,0.00016986,2]
[337800577,1726125049747,-502.72473416,0.00016986,2]
[337800578,1726125049758,-500.0,0.00016986,2]
[337800579,1726125049768,-748.9,0.00016986,2]
[337800580,1726125049778,-602.18,0.00016986,2]
[337800581,1726125049789,-500.0,0.00016986,2]
[337800582,1726125049798,-134.72181765,0.00016986,2]
[337800583,1726125050013,-485.75818235,0.00016986,2]
[337800584,1726125050024,-500.0,0.00016986,2]
[337800585,1726125050033,-690.04,0.00016986,2]
[337800586,1726125050206,-500.0,0.00016986,2]
[337800587,1726125050218,-500.0,0.00016986,2]
[337800588,1726125050228,-500.0,0.00016986,2]
[337800589,1726125050238,-500.0,0.00016986,2]
[337800590,1726125050248,-500.0,0.00016986,2]
[337800591,1726125050258,-656.82,0.00016986,2]
[337800592,1726125050267,-500.0,0.00016986,2]
[337800593,1726125050279,-500.0,0.00016986,2]
[337800594,1726125050289,-500.0,0.00016986,2]
[337800595,1726125050300,-500.0,0.00016986,2]
[337800596,1726125050312,-620.58,0.00016986,2]
[337800597,1726125050323,-500.0,0.00016986,2]
[337800598,1726125050335,-500.0,0.00016986,2]
[337800599,1726125050346,-500.0,0.00016986,2]
[337800600,1726125050356,-500.0,0.00016986,2]
[337800601,1726125050365,-500.0,0.00016986,2]
[337800602,1726125050375,-178.75,0.00016986,2]
[337800603,1726125050386,-500.0,0.00016986,2]
[337800604,1726125050396,-500.0,0.00016986,2]
[337800605,1726125050406,-500.0,0.00016986,2]
[337800606,1726125050416,-500.0,0.00016986,2]
[337800607,1726125050427,-500.0,0.00016986,2]
[337800608,1726125050436,-500.0,0.00016986,2]
[337800609,1726125050446,-500.0,0.00016986,2]
[337800610,1726125050455,-500.0,0.00016986,2]
[337800611,1726125050465,-272.10501129,0.00016986,2]
[337800612,1726125054990,-227.89498871,0.00016986,2]
[337800613,1726125055000,-500.0,0.00016986,2]
[337800614,1726125055010,-501.39781411,0.00016986,2]
[337800615,1726125055020,-500.0,0.00016986,2]
[337800616,1726125055030,-500.0,0.00016986,2]
[337800617,1726125055039,-500.0,0.00016986,2]
[337800618,1726125055049,-500.0,0.00016986,2]
[337800619,1726125055058,-1475.61,0.00016986,2]
[337800620,1726125055068,-500.0,0.00016986,2]
[337800621,1726125055077,-500.0,0.00016986,2]
[337800622,1726125055086,-184.2954887,0.00016986,2]
[337800623,1726125055096,-500.0,0.00016986,2]
[337800624,1726125055105,-500.0,0.00016986,2]
[337800625,1726125055115,-500.0,0.00016986,2]
[337800626,1726125055126,-500.0,0.00016986,2]
[337800627,1726125055136,-551.35,0.00016986,2]
[337800628,1726125055146,-588.39,0.00016986,2]
[337800629,1726125055158,-500.0,0.00016986,2]
[337800630,1726125055168,-500.0,0.00016986,2]
[337800631,1726125055178,-500.0,0.00016986,2]
[337800632,1726125055187,-500.0,0.00016986,2]
[337800633,1726125055196,-515.21,0.00016986,2]
[337800634,1726125055206,-500.0,0.00016986,2]
[337800635,1726125055215,-500.0,0.00016986,2]
[337800636,1726125055227,-500.0,0.00016986,2]
[337800637,1726125055239,-287.03111377,0.00016986,2]
[337800638,1726125056515,-233.85675867,0.00016438,2]
[337800639,1726125056538,-266.14324133,0.00016438,2]
[337800640,1726125056548,-500.0,0.00016438,2]
[337800641,1726125056559,-500.0,0.00016438,2]
[337800642,1726125056569,-518.56782583,0.00016438,2]
[337800643,1726125056578,-500.0,0.00016438,2]
[337800644,1726125056588,-500.0,0.00016438,2]
[337800645,1726125056598,-500.0,0.00016712,2]
[337800646,1726125056610,-500.0,0.00016712,2]
[337800647,1726125056620,-500.0,0.00016712,2]
[337800648,1726125056630,-500.0,0.00016712,2]
[337800649,1726125056640,-212.96888623,0.00016986,2]
[337800650,1726125056651,-369.74318115,0.00016986,2]
[337800651,1726125056661,-615.41,0.00016986,2]
[337800652,1726125056670,-500.0,0.00016986,2]
[337800653,1726125056682,-500.0,0.00016986,2]
[337800654,1726125056695,-500.0,0.00016986,2]
[337800655,1726125056705,-500.0,0.00016986,2]
[337800656,1726125056716,-500.0,0.00016986,2]
[337800657,1726125056727,-619.74,0.00016986,2]
[337800658,1726125056739,-1495.56,0.00016986,2]
[337800659,1726125056749,-912.23,0.00016986,2]
[337800660,1726125056759,-500.0,0.00016986,2]
[337800661,1726125056770,-500.0,0.00016986,2]
[337800662,1726125056782,-500.0,0.00016986,2]
[337800663,1726125056792,-500.0,0.00016986,2]
[337800664,1726125056804,-500.0,0.00016986,2]
[337800665,1726125056814,-500.0,0.00016986,2]
[337800666,1726125056824,-1323.12,0.00016986,2]
[337800667,1726125056834,-508.54635727,0.00016986,2]
[337800668,1726125056846,-622.05,0.00016986,2]
[337800669,1726125056857,-500.0,0.00016986,2]
[337800670,1726125056868,-500.0,0.00016986,2]
[337800671,1726125056879,-6617.43,0.00016986,2]
[337800672,1726125056891,-500.0,0.00016986,2]
[337800673,1726125056901,-500.0,0.00016986,2]
[337800674,1726125056911,-500.0,0.00016986,2]
[337800675,1726125056922,-500.0,0.00016986,2]
[337800676,1726125056932,-500.0,0.00016986,2]
[337800677,1726125056943,-500.0,0.00016986,2]
[337800678,1726125056954,-629.94,0.00016986,2]
[337800679,1726125056964,-500.0,0.00016986,2]
[337800680,1726125056974,-500.0,0.00016986,2]
[337800681,1726125056984,-500.0,0.00016986,2]
[337800682,1726125056994,-510.09,0.00016986,2]
[337800683,1726125057005,-908.28,0.00016986,2]
[337800684,1726125057015,-500.0,0.00016986,2]
[337800685,1726125057025,-617.92,0.00016986,2]
[337800686,1726125057034,-500.0,0.00016986,2]
[337800687,1726125057044,-550.0,0.00016986,2]
[337800688,1726125057054,-500.0,0.00016986,2]
[337800689,1726125057064,-500.0,0.00016986,2]
[337800690,1726125057074,-500.0,0.00016986,2]
[337800691,1726125057084,-500.0,0.00016986,2]
[337800692,1726125057096,-500.0,0.00016986,2]
[337800693,1726125057106,-716.66,0.00016986,2]
[337800694,1726125057116,-200.0,0.00016986,2]
[337800695,1726125057128,-500.0,0.00016986,2]
[337800696,1726125057138,-500.0,0.00016986,2]
[337800697,1726125057149,-500.0,0.00016986,2]
[337800698,1726125057161,-500.0,0.00016986,2]
[337800699,1726125057171,-622.36157942,0.00016986,2]
[337800700,1726125057181,-500.0,0.00016986,2]
[337800701,1726125057192,-1040.85,0.00016986,2]
[337800702,1726125057202,-500.0,0.00016986,2]
[337800703,1726125057213,-508.06189856,0.00016986,2]
[337800704,1726125057223,-575.54,0.00016986,2]
[337800705,1726125057233,-500.0,0.00016986,2]
[337800706,1726125057244,-500.0,0.00016986,2]
[337800707,1726125057255,-500.0,0.00016986,2]
[337800708,1726125057266,-500.0,0.00016986,2]
[337800709,1726125057277,-500.0,0.00016986,2]
[337800710,1726125057287,-7638.2,0.00016986,2]
[337800711,1726125057297,-500.0,0.00016986,2]
[337800712,1726125057308,-500.0,0.00016986,2]
[337800713,1726125057320,-6438.54,0.00016986,2]
[337800714,1726125057331,-500.0,0.00016986,2]
[337800715,1726125057341,-728.28,0.00016986,2]
[337800716,1726125057351,-500.0,0.00016986,2]
[337800717,1726125057363,-805.69,0.00016986,2]
[337800718,1726125057373,-951.06,0.00016986,2]
[337800719,1726125057384,-1337.49,0.00016986,2]
[337800720,1726125057394,-6829.49,0.00016986,2]
[337800721,1726125057405,-586.91,0.00016986,2]
[337800722,1726125057416,-500.0,0.00016986,2]
[337800723,1726125057428,-539.1,0.00016986,2]
[337800724,1726125057438,-917.76,0.00016986,2]
[337800725,1726125057450,-500.0,0.00016986,2]
[337800726,1726125057462,-500.0,0.00016986,2]
[337800727,1726125057472,-500.0,0.00016986,2]
[337800728,1726125057483,-1211.83,0.00016986,2]
[337800729,1726125057494,-515.33,0.00016986,2]
[337800730,1726125057506,-859.49,0.00016986,2]
[337800731,1726125057517,-834.69,0.00016986,2]
[337800732,1726125057529,-500.0,0.00016986,2]
[337800733,1726125057540,-729.48,0.00016986,2]
[337800734,1726125057551,-500.0,0.00016986,2]
[337800735,1726125057563,-605.37,0.00016986,2]
[337800736,1726125057573,-1064.49,0.00016986,2]
[337800737,1726125057582,-500.0,0.00016986,2]
[337800738,1726125057592,-500.0,0.00016986,2]
[337800739,1726125057602,-4198.42,0.00016986,2]
[337800740,1726125057615,-2045.53,0.00016986,2]
[337800741,1726125057626,-500.0,0.00016986,2]
[337800742,1726125057635,-743.67,0.00016986,2]
[337800743,1726125057645,-1332.3,0.00016986,2]
[337800744,1726125057655,-1124.01,0.00016986,2]
[337800745,1726125057664,-500.9524763,0.00016986,2]
[337800746,1726125057675,-800.52,0.00016986,2]
[337800747,1726125057685,-2485.92,0.00016986,2]
[337800748,1726125057698,-500.0,0.00016986,2]
[337800749,1726125057710,-500.0,0.00016986,2]
[337800750,1726125057723,-417.85233145,0.00016986,2]
[337800751,1726125057735,-500.0,0.00016986,2]
[337800752,1726125057747,-708.19,0.00016986,2]